bitfinex/quotes_SOLUSD_20230111
["timestamp","ask_amount","ask_price","bid_price","bid_amount"]
[1673454812645,18.84,15.45,15.439,20.0]
[1673454812872,18.84,15.45,15.44,1.92]
[1673454813070,18.84,15.45,15.44,50.5]
[1673454813484,18.84,15.45,15.441,20.0]
[1673454814435,18.84,15.45,15.44,48.58]
[1673454817272,18.84,15.45,15.441,0.96]
[1673454817610,257.4141,15.456,15.441,21.92]
[1673454817800,257.4141,15.456,15.443,20.0]
[1673454818123,257.4141,15.456,15.444,1.92]
[1673454818321,257.4141,15.456,15.444,50.49]
[1673454818856,1.92,15.455,15.444,48.57]
[1673454819683,48.52,15.459,15.445,40.0]
[1673454819920,1.92,15.458,15.445,88.57]
[1673454820317,1.92,15.458,15.445,48.57]
[1673454820538,21.92,15.458,15.444,48.57]
[1673454821064,20.0,15.457,15.444,48.57]
[1673454821279,1.92,15.456,15.442,48.58]
[1673454821470,115.9574,15.456,15.443,1.92]
[1673454821680,40.0,15.455,15.442,48.58]
[1673454821890,1.92,15.454,15.442,48.58]
[1673454822101,1.92,15.454,15.441,48.58]
[1673454822417,40.0,15.455,15.442,1.92]
[1673454822842,40.0,15.455,15.443,48.58]
[1673454823271,20.0,15.455,15.443,48.58]
[1673454825683,20.0,15.455,15.442,48.58]
[1673454826629,20.0,15.455,15.443,20.0]
[1673454826862,20.0,15.455,15.444,1.92]
[1673454827794,20.0,15.455,15.445,48.57]
[1673454828416,20.0,15.454,15.442,48.58]
[1673454828627,20.0,15.454,15.443,1.92]
[1673454829149,40.0,15.455,15.444,48.57]
[1673454829409,20.0,15.455,15.444,48.57]
[1673454830306,1.92,15.454,15.444,48.57]
[1673454830518,21.92,15.454,15.441,48.58]
[1673454830726,21.92,15.454,15.442,1.92]
[1673454830938,1.92,15.454,15.442,1.92]
[1673454831268,1.92,15.454,15.443,48.58]
[1673454831883,1.92,15.454,15.441,48.58]
[1673454832095,1.92,15.454,15.442,20.0]
[1673454832739,1.92,15.454,15.443,48.58]
[1673454833356,1.92,15.454,15.441,48.58]
[1673454833574,18.98,15.45,15.44,48.58]
[1673454833904,18.98,15.45,15.439,114.2646]
[1673454833905,1.92,15.449,15.439,114.2646]
[1673454834304,50.48,15.449,15.436,48.6]
[1673454834515,40.0,15.448,15.435,48.6]
[1673454834727,1.92,15.447,15.435,48.6]
[1673454835048,1.92,15.447,15.434,48.6]
[1673454835259,14.2,15.44,15.43,48.62]
[1673454836306,1.92,15.439,15.43,48.62]
[1673454836504,0.96,15.439,15.429,116.1415]
[1673454836710,14.2,15.44,15.429,116.1415]
[1673454836711,14.2,15.44,15.43,20.0]
[1673454836926,14.2,15.44,15.43,68.62]
[1673454837660,14.28,15.44,15.43,68.62]
[1673454841347,14.28,15.44,15.43,48.62]
[1673454841560,14.28,15.44,15.429,116.1415]
[1673454841781,14.28,15.44,15.43,48.62]
[1673454843558,14.28,15.44,15.431,20.0]
[1673454844814,1.92,15.439,15.431,20.0]
[1673454845337,1.92,15.439,15.429,116.1415]
[1673454845658,1.92,15.439,15.429,164.7615]
[1673454846078,1.92,15.439,15.429,116.1415]
[1673454847858,1.92,15.439,15.43,20.0]
[1673454849240,1.92,15.439,15.429,116.1415]
[1673454849456,71.69,15.44,15.429,116.1415]
[1673454849636,71.69,15.44,15.43,68.62]
[1673454851337,1.92,15.439,15.43,48.62]
[1673454852685,1.92,15.439,15.429,116.1415]
[1673454852894,1.92,15.439,15.43,20.0]
[1673454853331,1.92,15.439,15.429,116.1415]
[1673454853547,21.92,15.439,15.427,48.63]
[1673454853859,1.92,15.439,15.427,20.0]
[1673454854069,1.92,15.439,15.428,48.62]
[1673454854387,1.92,15.439,15.429,20.0]
[1673454854594,71.69,15.44,15.429,20.0]
[1673454854918,14.44,15.44,15.43,50.54]
[1673454855118,14.44,15.44,15.431,20.0]
[1673454855439,14.44,15.44,15.432,1.92]
[1673454855647,14.44,15.44,15.433,20.0]
[1673454856156,14.44,15.44,15.434,48.6]
[1673454856360,14.44,15.44,15.433,20.0]
[1673454856361,14.44,15.44,15.433,68.61]
[1673454856782,163.7578,15.448,15.434,1.92]
[1673454856992,115.1978,15.448,15.434,21.92]
[1673454857319,115.1978,15.448,15.436,20.0]
[1673454857646,71.47,15.45,15.438,20.0]
[1673454858043,71.47,15.45,15.439,48.59]
[1673454860154,71.47,15.45,15.44,20.0]
[1673454860786,14.19,15.45,15.44,20.0]
[1673454861000,14.19,15.45,15.441,48.58]
[1673454862250,14.19,15.45,15.439,48.59]
[1673454862887,14.19,15.45,15.44,21.92]
[1673454863405,14.19,15.45,15.441,48.58]
[1673454863732,14.19,15.45,15.442,20.0]
[1673454864253,14.19,15.45,15.441,48.58]
[1673454865749,14.19,15.45,15.439,48.59]
[1673454865963,14.19,15.45,15.44,20.0]
[1673454866375,14.19,15.45,15.442,20.0]
[1673454866790,14.19,15.45,15.443,50.5]
[1673454867451,14.19,15.45,15.443,48.58]
[1673454868505,14.19,15.45,15.444,21.92]
[1673454868708,14.19,15.45,15.443,48.58]
[1673454869128,14.19,15.45,15.441,48.58]
[1673454869543,1.92,15.449,15.44,48.58]
[1673454871010,1.92,15.449,15.439,48.59]
[1673454871641,14.19,15.45,15.439,48.59]
[1673454873964,14.19,15.45,15.44,20.96]
[1673454874703,14.19,15.45,15.441,48.58]
[1673454876581,14.19,15.45,15.439,48.59]
[1673454880784,14.19,15.45,15.438,48.59]
[1673454881204,1.92,15.449,15.438,48.59]
[1673454881431,1.92,15.449,15.437,68.59]
[1673454881856,21.92,15.449,15.437,68.59]
[1673454882043,21.92,15.449,15.437,20.0]
[1673454882466,1.92,15.449,15.437,20.0]
[1673454882678,1.92,15.449,15.437,40.0]
[1673454883433,1.92,15.449,15.438,48.59]
[1673454883962,21.92,15.449,15.438,48.59]
[1673454885013,21.92,15.449,15.437,20.0]
[1673454885527,39.14496728,15.448,15.433,48.61]
[1673454885757,14.32,15.44,15.433,48.61]
[1673454886062,14.32,15.44,15.43,48.62]
[1673454886278,14.32,15.44,15.431,20.0]
[1673454887018,14.32,15.44,15.432,48.61]
[1673454887826,14.32,15.44,15.433,20.0]
[1673454892037,14.32,15.44,15.432,48.61]
[1673454892247,14.32,15.44,15.427,20.0]
[1673454892248,14.32,15.44,15.43,48.62]
[1673454892670,1.92,15.439,15.428,48.62]
[1673454892884,1.92,15.439,15.43,48.62]
[1673454893316,1.92,15.439,15.429,20.7777]
[1673454893723,14.32,15.44,15.429,20.7777]
[1673454893932,14.32,15.44,15.43,48.62]
[1673454894137,14.32,15.44,15.431,20.0]
[1673454895295,1.92,15.439,15.431,20.0]
[1673454898456,1.92,15.439,15.43,48.62]
[1673454899388,1.92,15.439,15.429,0.7777]
[1673454899602,1.92,15.439,15.429,20.7777]
[1673454900232,31.92,15.439,15.429,20.7777]
[1673454901590,30.0,15.439,15.429,20.7777]
[1673454901810,30.0,15.439,15.43,50.54]
[1673454902047,14.32,15.44,15.431,20.0]
[1673454902240,14.32,15.44,15.432,1.92]
[1673454902431,14.32,15.44,15.432,50.53]
[1673454902645,14.32,15.44,15.433,20.0]
[1673454902854,14.32,15.44,15.432,48.61]
[1673454903297,14.32,15.44,15.431,20.0]
[1673454903506,14.32,15.44,15.432,48.61]
[1673454904241,14.32,15.44,15.431,20.0]
[1673454905287,14.32,15.44,15.43,48.62]
[1673454905693,30.0,15.438,15.43,48.62]
[1673454907282,30.0,15.438,15.431,20.96]
[1673454907492,30.0,15.438,15.431,21.92]
[1673454907688,30.0,15.438,15.432,48.61]
[1673454908855,30.0,15.438,15.433,20.0]
[1673454909277,30.0,15.438,15.434,48.6]
[1673454909628,30.0,15.438,15.433,20.0]
[1673454909788,30.0,15.438,15.434,48.6]
[1673454909999,14.32,15.44,15.435,20.0]
[1673454910234,113.9178,15.446,15.435,20.0]
[1673454910417,20.0,15.445,15.435,20.0]
[1673454918640,20.0,15.445,15.434,48.6]
[1673454918960,20.0,15.445,15.435,1.92]
[1673454919268,1.92,15.444,15.431,48.61]
[1673454919480,14.32,15.44,15.43,48.62]
[1673454920204,14.32,15.44,15.429,0.7777]
[1673454920543,14.32,15.44,15.429,20.7777]
[1673454924748,14.32,15.44,15.43,50.54]
[1673454925367,14.32,15.44,15.431,20.0]
[1673454928208,14.19,15.45,15.432,68.61]
[1673454928422,114.0374,15.456,15.434,64.53]
[1673454928423,232.6593,15.456,15.434,64.53]
[1673454928628,20.0,15.455,15.435,85.49]
[1673454928841,20.0,15.455,15.436,0.96]
[1673454929052,20.0,15.455,15.437,20.96]
[1673454929375,20.0,15.455,15.439,20.0]
[1673454929586,20.0,15.455,15.44,1.92]
[1673454929797,20.0,15.455,15.441,20.0]
[1673454929995,19.5,15.455,15.442,0.96]
[1673454930322,19.5,15.455,15.443,20.96]
[1673454930849,19.5,15.455,15.444,48.57]
[1673454931257,14.32,15.45,15.444,48.57]
[1673454931584,14.32,15.45,15.442,48.58]
[1673454931992,14.32,15.45,15.44,48.58]
[1673454932400,14.32,15.45,15.439,48.59]
[1673454934411,14.32,15.45,15.44,1.92]
[1673454934831,14.32,15.45,15.441,48.58]
[1673454935043,14.32,15.45,15.442,1.92]
[1673454935463,14.32,15.45,15.442,0.96]
[1673454935670,14.32,15.45,15.441,1.92]
[1673454936196,14.32,15.45,15.442,48.58]
[1673454939575,14.32,15.45,15.44,48.58]
[1673454941247,68.04,15.455,15.441,20.0]
[1673454941459,1.92,15.454,15.441,21.92]
[1673454941670,1.92,15.454,15.442,48.58]
[1673454941879,1.92,15.454,15.443,20.0]
[1673454942318,1.92,15.454,15.444,48.57]
[1673454942951,0.96,15.454,15.444,48.57]
[1673454943262,19.5,15.455,15.445,20.0]
[1673454943681,19.5,15.455,15.446,48.57]
[1673454944734,19.5,15.455,15.444,48.57]
[1673454948194,19.5,15.455,15.445,21.92]
[1673454949568,19.5,15.455,15.444,48.57]
[1673454949789,14.25,15.45,15.442,48.58]
[1673454949994,14.25,15.45,15.441,48.58]
[1673454950307,14.25,15.45,15.44,48.58]
[1673454951770,14.25,15.45,15.441,1.92]
[1673454952508,14.25,15.45,15.443,20.0]
[1673454952939,14.25,15.45,15.444,48.57]
[1673454954412,14.25,15.45,15.442,48.58]
[1673454955028,14.25,15.45,15.44,48.58]
[1673454955566,14.25,15.45,15.439,48.59]
[1673454956612,14.25,15.45,15.439,68.59]
[1673454957561,14.25,15.45,15.439,48.59]
[1673454957964,14.25,15.45,15.44,20.0]
[1673454958810,14.25,15.45,15.441,48.58]
[1673454959222,14.25,15.45,15.44,68.58]
[1673454964797,14.19,15.45,15.44,68.58]
[1673454965960,14.19,15.45,15.441,1.92]
[1673454966384,14.19,15.45,15.442,48.58]
[1673454967122,14.19,15.45,15.441,48.58]
[1673454967732,14.23,15.45,15.441,48.58]
[1673454968171,14.23,15.45,15.442,21.92]
[1673454968368,14.23,15.45,15.442,20.0]
[1673454969117,14.23,15.45,15.441,48.58]
[1673454969521,14.23,15.45,15.44,48.58]
[1673454969732,14.23,15.45,15.441,20.0]
[1673454974163,14.23,15.45,15.442,48.58]
[1673454976458,14.23,15.45,15.443,20.0]
[1673454978787,0.96,15.449,15.439,68.59]
[1673454978983,14.23,15.45,15.439,68.59]
[1673454979310,1.92,15.449,15.439,68.59]
[1673454980457,1.92,15.449,15.438,162.9595]
[1673454980773,21.92,15.449,15.438,162.9595]
[1673454981089,1.92,15.449,15.438,114.3695]
[1673454981520,1.92,15.449,15.439,20.0]
[1673454982123,14.23,15.45,15.439,20.0]
[1673454982560,19.5,15.455,15.44,1.92]
[1673454982760,19.5,15.455,15.44,66.92577895]
[1673454982971,19.5,15.455,15.441,16.42577895]
[1673454983181,19.5,15.455,15.442,1.92]
[1673454983391,19.5,15.455,15.443,20.0]
[1673454983706,48.52,15.459,15.445,20.0]
[1673454983915,71.48,15.46,15.446,0.96]
[1673454984126,71.48,15.46,15.446,69.53]
[1673454984453,71.48,15.46,15.447,20.96]
[1673454984667,120.0,15.46,15.447,20.96]
[1673454984856,71.48,15.46,15.448,48.56]
[1673454985280,0.96,15.459,15.448,48.56]
[1673454985498,1.92,15.459,15.448,48.56]
[1673454986749,1.92,15.459,15.449,20.0]
[1673454987596,0.96,15.459,15.449,20.0]
[1673454987806,71.48,15.46,15.449,20.0]
[1673454990220,71.48,15.46,15.448,48.56]
[1673454991184,120.0,15.46,15.446,20.0]
[1673454991396,21.92,15.459,15.446,20.0]
[1673454991707,21.92,15.459,15.445,84.53]
[1673454991915,48.53,15.458,15.445,20.0]
[1673454992241,1.92,15.457,15.446,48.57]
[1673454992441,1.92,15.457,15.447,20.0]
[1673454993193,1.92,15.457,15.446,20.0]
[1673454995075,1.92,15.457,15.446,40.0]
[1673454996644,1.92,15.457,15.446,20.0]
[1673454997787,0.96,15.457,15.447,20.0]
[1673454998004,71.48,15.46,15.447,68.56]
[1673454998650,120.0,15.46,15.447,68.56]
[1673454999283,0.96,15.459,15.447,68.56]
[1673454999476,1.92,15.459,15.447,68.56]
[1673455001173,71.48,15.46,15.447,68.56]
[1673455001486,71.48,15.46,15.448,1.92]
[1673455002207,71.48,15.46,15.449,48.56]
[1673455002642,71.48,15.46,15.448,50.48]
[1673455002961,0.96,15.459,15.448,48.56]
[1673455003147,1.92,15.459,15.448,48.56]
[1673455004218,1.92,15.459,15.449,20.0]
[1673455004620,1.92,15.459,15.448,48.56]
[1673455005041,21.92,15.459,15.447,48.56]
[1673455005246,0.96,15.458,15.447,48.56]
[1673455005476,0.96,15.457,15.447,48.56]
[1673455005670,71.48,15.46,15.447,48.56]
[1673455005882,71.48,15.46,15.448,20.0]
[1673455006316,71.48,15.46,15.449,48.56]
[1673455010967,21.92,15.459,15.448,48.56]
[1673455011367,21.92,15.459,15.447,48.56]
[1673455011780,1.92,15.459,15.447,48.56]
[1673455012420,21.92,15.459,15.447,48.56]
[1673455012632,71.48,15.46,15.447,48.56]
[1673455012826,71.48,15.46,15.448,21.92]
[1673455013472,71.48,15.46,15.449,48.56]
[1673455013786,0.96,15.459,15.449,48.56]
[1673455013987,1.92,15.459,15.447,48.56]
[1673455015337,71.48,15.46,15.441,64.53]
[1673455015552,71.48,15.46,15.429,112.7889]
[1673455015553,30.0,15.448,15.429,112.7889]
[1673455015763,14.29,15.44,15.429,112.7889]
[1673455016306,14.29,15.44,15.431,20.0]
[1673455016832,14.29,15.44,15.432,48.61]
[1673455017780,14.29,15.44,15.433,20.0]
[1673455018608,14.29,15.44,15.434,0.96]
[1673455018822,14.29,15.44,15.434,50.52]
[1673455019031,14.29,15.44,15.435,20.0]
[1673455019249,78.56,15.448,15.436,1.92]
[1673455019444,20.0,15.447,15.436,1.92]
[1673455019650,20.0,15.447,15.435,20.0]
[1673455020289,39.14496728,15.447,15.435,20.0]
[1673455021146,20.0,15.447,15.435,20.0]
[1673455021350,20.0,15.447,15.436,1.92]
[1673455022178,20.0,15.447,15.436,19.2501182]
[1673455025042,19.14496728,15.446,15.436,19.2501182]
[1673455025240,20.0,15.445,15.436,19.2501182]
[1673455025776,30.0,15.448,15.437,90.51]
[1673455026178,30.0,15.448,15.437,109.7601182]
[1673455030495,49.14496728,15.448,15.437,107.8401182]
[1673455031973,30.0,15.448,15.438,1.92]
[1673455032190,30.0,15.448,15.438,21.1701182]
[1673455035030,30.0,15.448,15.438,19.2501182]
[1673455036291,30.0,15.448,15.439,0.96]
[1673455036487,30.0,15.448,15.439,1.92]
[1673455038283,30.0,15.448,15.439,69.7601182]
[1673455038494,30.0,15.448,15.439,41.1701182]
[1673455038822,30.0,15.448,15.44,48.58]
[1673455039037,48.53,15.457,15.441,21.92]
[1673455039227,48.52,15.459,15.442,20.0]
[1673455039428,14.38,15.46,15.443,1.92]
[1673455039867,14.38,15.46,15.445,20.0]
[1673455040075,14.38,15.46,15.446,1.92]
[1673455040282,33.52496728,15.46,15.446,89.7401182]
[1673455040495,33.52496728,15.46,15.447,20.0]
[1673455040715,33.52496728,15.46,15.448,1.92]
[1673455040911,33.52496728,15.46,15.448,50.48]
[1673455041120,33.52496728,15.46,15.449,20.0]
[1673455041955,19.14496728,15.459,15.449,20.0]
[1673455042378,19.14496728,15.459,15.449,39.2501182]
[1673455044603,20.0,15.458,15.449,19.2501182]
[1673455044830,30.0,15.45,15.449,19.2501182]
[1673455045432,30.0,15.45,15.449,1.82e-05]
[1673455045861,48.53,15.457,15.449,1.82e-05]
[1673455046170,20.0,15.456,15.449,1.82e-05]
[1673455048588,48.53,15.457,15.449,1.82e-05]
[1673455048803,71.75,15.46,15.449,1.82e-05]
[1673455049011,45.21871728,15.461,15.449,1.82e-05]
[1673455049227,111.3285,15.466,15.449,1.82e-05]
[1673455049443,71.66,15.47,15.45,48.55]
[1673455049642,71.66,15.47,15.451,0.96]
[1673455049643,14.2,15.46,15.451,0.96]
[1673455049848,28.39,15.46,15.449,1.82e-05]
[1673455050063,48.52,15.459,15.449,1.82e-05]
[1673455050490,20.0,15.458,15.449,1.82e-05]
[1673455050698,20.0,15.457,15.449,1.82e-05]
[1673455050915,111.6384,15.456,15.449,1.82e-05]
[1673455051118,40.96,15.455,15.449,1.82e-05]
[1673455051451,0.96,15.454,15.449,1.82e-05]
[1673455051861,0.96,15.453,15.449,1.82e-05]
[1673455052072,0.96,15.452,15.449,1.82e-05]
[1673455052813,0.96,15.451,15.449,1.82e-05]
[1673455053020,48.54,15.453,15.449,1.82e-05]
[1673455053236,30.0,15.454,15.449,1.82e-05]
[1673455055104,20.0,15.453,15.449,1.82e-05]
[1673455055520,30.0,15.454,15.449,1.82e-05]
[1673455056384,20.0,15.453,15.449,1.82e-05]
[1673455056702,169.91436728,15.459,15.449,1.82e-05]
[1673455056907,20.0,15.458,15.449,1.82e-05]
[1673455057319,20.0,15.456,15.449,1.82e-05]
[1673455058167,20.0,15.455,15.449,1.82e-05]
[1673455060285,20.0,15.456,15.449,1.82e-05]
[1673455060495,48.53,15.457,15.449,1.82e-05]
[1673455060711,68.53,15.458,15.449,1.82e-05]
[1673455060908,1.92,15.457,15.449,1.82e-05]
[1673455065631,20.0,15.456,15.449,1.82e-05]
[1673455065840,1.92,15.455,15.449,1.82e-05]
[1673455067858,20.0,15.456,15.449,1.82e-05]
[1673455069639,20.0,15.457,15.449,1.82e-05]
[1673455069848,67.43,15.46,15.449,1.82e-05]
[1673455070165,18.91,15.46,15.449,1.82e-05]
[1673455070995,18.91,15.46,15.449,1.9200182]
[1673455074677,48.52,15.459,15.449,1.9200182]
[1673455074908,48.51,15.463,15.449,1.9200182]
[1673455075124,48.51,15.463,15.451,20.0]
[1673455075334,48.51,15.463,15.452,1.92]
[1673455076377,48.51,15.463,15.449,20.0000182]
[1673455076587,48.51,15.463,15.45,1.92]
[1673455076800,61.42536166,15.466,15.45,1.92]
[1673455077119,21.92,15.465,15.45,1.92]
[1673455077310,70.43,15.465,15.45,1.92]
[1673455077732,18.85,15.46,15.45,1.92]
[1673455078790,18.85,15.46,15.449,20.0]
[1673455084250,48.51,15.463,15.449,20.0]
[1673455084578,48.51,15.463,15.451,20.0]
[1673455085828,111.8406,15.464,15.452,1.92]
[1673455086567,48.51,15.463,15.452,1.92]
[1673455090985,48.5,15.468,15.453,48.54]
[1673455091193,19.2,15.47,15.455,21.62353755]
[1673455091388,48.49,15.469,15.457,1.70892306]
[1673455091710,48.49,15.469,15.457,21.70892306]
[1673455092464,1.92,15.468,15.457,21.70892306]
[1673455095802,47.61,15.47,15.458,20.0]
[1673455096022,1.92,15.469,15.459,1.70892306]
[1673455096957,47.61,15.47,15.461,2.17645722]
[1673455097165,48.48,15.473,15.461,2.17645722]
[1673455097409,48.46,15.479,15.461,2.17645722]
[1673455097716,48.48,15.474,15.461,2.17645722]
[1673455097917,39.14496728,15.478,15.461,2.17645722]
[1673455098109,48.47,15.477,15.461,2.17645722]
[1673455098745,18.91,15.47,15.459,20.0]
[1673455098962,1.92,15.469,15.459,20.0]
[1673455099172,50.41,15.469,15.459,20.0]
[1673455100638,1.92,15.469,15.459,20.0]
[1673455102875,18.91,15.47,15.459,20.0]
[1673455103075,48.48,15.474,15.46,1.92]
[1673455103280,48.47,15.475,15.46,1.92]
[1673455103603,48.47,15.475,15.461,20.0]
[1673455103812,48.47,15.475,15.462,1.92]
[1673455104023,48.47,15.477,15.462,1.92]
[1673455104227,20.0,15.476,15.464,20.0]
[1673455104434,20.0,15.476,15.465,1.92]
[1673455104672,20.0,15.478,15.465,50.43]
[1673455105197,48.47,15.477,15.465,50.43]
[1673455105390,21.92,15.476,15.464,20.0]
[1673455105713,21.92,15.476,15.463,20.0]
[1673455105930,48.47,15.475,15.463,20.0]
[1673455106142,1.92,15.474,15.463,20.0]
[1673455107399,48.47,15.475,15.464,20.0]
[1673455107611,48.47,15.478,15.465,20.0]
[1673455107826,48.46,15.479,15.466,20.0]
[1673455108015,18.89,15.48,15.466,70.42]
[1673455108226,48.46,15.479,15.467,21.33063502]
[1673455111495,14.25,15.48,15.467,21.33063502]
[1673455111701,0.96,15.479,15.467,21.33063502]
[1673455112451,0.96,15.479,15.469,20.0]
[1673455112643,0.96,15.479,15.469,21.30482831]
[1673455113610,0.96,15.479,15.469,1.30482831]
[1673455113911,0.96,15.478,15.468,1.31721788]
[1673455114126,56.36851,15.478,15.46,48.52]
[1673455114318,14.24,15.47,15.459,68.52]
[1673455114977,0.96,15.469,15.459,68.52]
[1673455116746,0.96,15.469,15.459,20.0]
[1673455117154,0.96,15.469,15.458,113.06]
[1673455117371,0.96,15.468,15.457,20.0]
[1673455117590,0.96,15.467,15.457,20.0]
[1673455117806,0.96,15.466,15.457,20.0]
[1673455118012,0.96,15.465,15.457,20.0]
[1673455121891,14.37,15.47,15.46,20.0]
[1673455123360,14.37,15.47,15.462,20.0]
[1673455124101,14.37,15.47,15.46,20.0]
[1673455124308,0.96,15.469,15.46,20.0]
[1673455126942,1.92,15.469,15.46,20.0]
[1673455137675,19.02,15.47,15.46,20.0]
[1673455138079,19.02,15.47,15.461,48.52]
[1673455138495,38.16496728,15.47,15.459,48.52]
[1673455138924,0.96,15.469,15.459,48.52]
[1673455139126,0.96,15.468,15.458,48.53]
[1673455139340,0.96,15.469,15.459,20.0]
[1673455139561,0.96,15.468,15.459,20.0]
[1673455139775,0.96,15.467,15.459,20.0]
[1673455140298,0.96,15.466,15.458,48.53]
[1673455140511,0.96,15.466,15.455,48.54]
[1673455140703,0.96,15.465,15.454,48.54]
[1673455140914,0.96,15.464,15.454,48.54]
[1673455141119,0.96,15.465,15.454,48.54]
[1673455142711,0.96,15.466,15.454,48.54]
[1673455142940,1.92,15.466,15.454,48.54]
[1673455143559,0.96,15.465,15.454,48.54]
[1673455144595,18.84,15.46,15.453,48.54]
[1673455144805,1.92,15.459,15.452,48.55]
[1673455145130,0.96,15.459,15.451,48.55]
[1673455146804,0.96,15.459,15.451,68.55]
[1673455147344,18.84,15.46,15.452,0.96]
[1673455147558,18.84,15.46,15.452,20.0]
[1673455147768,18.84,15.46,15.453,48.54]
[1673455147974,19.04,15.46,15.453,48.54]
[1673455148294,19.04,15.46,15.454,20.0]
[1673455148702,19.04,15.46,15.455,48.54]
[1673455148924,132.93186728,15.466,15.455,48.54]
[1673455149237,20.0,15.465,15.455,48.54]
[1673455149434,20.0,15.465,15.456,20.0]
[1673455151318,20.0,15.465,15.457,48.53]
[1673455151738,20.0,15.465,15.456,20.0]
[1673455153232,0.96,15.464,15.456,20.0]
[1673455155119,20.0,15.465,15.456,20.0]
[1673455155544,20.0,15.465,15.457,48.53]
[1673455155970,20.0,15.468,15.457,48.53]
[1673455156183,1.92,15.467,15.457,48.53]
[1673455156392,21.92,15.467,15.457,48.53]
[1673455158081,21.92,15.467,15.458,20.0]
[1673455158597,21.92,15.467,15.457,48.53]
[1673455158813,21.92,15.467,15.456,20.0]
[1673455159018,21.92,15.467,15.457,48.53]
[1673455162068,19.14496728,15.466,15.453,48.54]
[1673455162268,18.96,15.46,15.453,48.54]
[1673455162496,18.96,15.46,15.452,48.55]
[1673455164368,1.92,15.459,15.451,48.55]
[1673455164582,1.92,15.459,15.448,160.6664]
[1673455164895,1.92,15.459,15.448,112.1064]
[1673455165214,1.92,15.459,15.449,48.56]
[1673455168784,1.92,15.459,15.45,20.0]
[1673455168997,95.1,15.46,15.45,20.0]
[1673455169330,18.97,15.46,15.451,48.55]
[1673455169645,18.97,15.46,15.452,20.0]
[1673455170050,18.97,15.46,15.453,48.54]